fUSD/lending_fUSD_20250426
["ID","MTS","AMOUNT","RATE_DAILY","PERIOD"]
[359068523,1745692241711,-825.61,0.00019871,2]
[359068524,1745692241721,-400.0,0.00019871,2]
[359068525,1745692241731,-235.23510978,0.00019871,2]
[359068526,1745692241740,-400.0,0.00019871,2]
[359068527,1745692241749,-205.76331068,0.00019871,2]
[359068528,1745692241759,-200.0,0.00019871,2]
[359068529,1745692241768,-400.0,0.00019871,2]
[359068530,1745692241779,-400.0,0.00019871,2]
[359068531,1745692241789,-400.0,0.00019871,2]
[359068532,1745692241799,-400.0,0.00019871,2]
[359068533,1745692241811,-400.0,0.00019871,2]
[359068534,1745692241821,-400.0,0.00019871,2]
[359068535,1745692241831,-400.0,0.00019871,2]
[359068536,1745692241841,-205.26182387,0.00019871,2]
[359068537,1745692241852,-400.0,0.00019871,2]
[359068538,1745692241863,-400.0,0.00019871,2]
[359068539,1745692241874,-400.0,0.00019871,2]
[359068540,1745692241885,-401.17,0.00019871,2]
[359068541,1745692241895,-200.0,0.00019871,2]
[359068542,1745692241906,-250.0,0.00019871,2]
[359068543,1745692241916,-200.0,0.00019871,2]
[359068544,1745692241926,-400.0,0.00019871,2]
[359068545,1745692241938,-200.0,0.00019871,2]
[359068546,1745692241948,-400.0,0.00019871,2]
[359068547,1745692241959,-400.0,0.00019871,2]
[359068548,1745692241972,-624.07,0.00019871,2]
[359068549,1745692241981,-253.92943443,0.00019871,2]
[359068550,1745692241991,-455.11899499,0.00019871,2]
[359068551,1745692242000,-200.0,0.00019871,2]
[359068552,1745692242009,-400.0,0.00019871,2]
[359068553,1745692242019,-288.02887462,0.00019871,2]
[359068554,1745692242029,-400.0,0.00019871,2]
[359068555,1745692242040,-200.0,0.00019871,2]
[359068556,1745692242050,-400.0,0.00019871,2]
[359068557,1745692242061,-292.2041812,0.00019871,2]
[359068558,1745692242071,-493.67150404,0.00019871,2]
[359068559,1745692242082,-500.0,0.00019871,2]
[359068560,1745692242093,-200.0,0.00019871,2]
[359068561,1745692242103,-511.05,0.00019871,2]
[359068562,1745692242114,-500.0,0.00019871,2]
[359068563,1745692242124,-657.97,0.00019871,2]
[359068564,1745692242134,-400.0,0.00019871,2]
[359068565,1745692242144,-400.0,0.00019871,2]
[359068566,1745692242154,-1070.08,0.00019871,2]
[359068567,1745692242163,-400.0,0.00019871,2]
[359068568,1745692242173,-400.0,0.00019871,2]
[359068569,1745692242182,-500.0,0.00019871,2]
[359068570,1745692242192,-400.0,0.00019871,2]
[359068571,1745692242202,-400.0,0.00019871,2]
[359068572,1745692242211,-453.88,0.00019871,2]
[359068573,1745692242220,-400.0,0.00019871,2]
[359068574,1745692242230,-400.0,0.00019871,2]
[359068575,1745692242239,-400.0,0.00019871,2]
[359068576,1745692242249,-400.0,0.00019871,2]
[359068577,1745692242262,-400.0,0.00019871,2]
[359068578,1745692242271,-400.0,0.00019871,2]
[359068579,1745692242282,-400.0,0.00019871,2]
[359068580,1745692242292,-400.0,0.00019871,2]
[359068581,1745692242302,-400.0,0.00019871,2]
[359068582,1745692242312,-183.29250345,0.00019871,2]
[359068583,1745692242324,-400.0,0.00019871,2]
[359068584,1745692242334,-379.52554957,0.00019871,2]
[359068585,1745692242344,-674.78,0.00019871,2]
[359068586,1745692242354,-400.0,0.00019871,2]
[359068587,1745692242363,-400.0,0.00019871,2]
[359068588,1745692242373,-400.0,0.00019871,2]
[359068589,1745692242384,-400.0,0.00019871,2]
[359068590,1745692242395,-400.0,0.00019871,2]
[359068591,1745692242404,-400.0,0.00019871,2]
[359068592,1745692242414,-386.68122914,0.00019871,2]
[359068593,1745692242425,-400.0,0.00019871,2]
[359068594,1745692242434,-400.0,0.00019871,2]
[359068595,1745692242444,-400.0,0.00019871,2]
[359068596,1745692242456,-400.0,0.00019871,2]
[359068597,1745692242468,-400.0,0.00019871,2]
[359068598,1745692242479,-400.0,0.00019871,2]
[359068599,1745692242490,-252.92410578,0.00019871,2]
[359068600,1745692242502,-486.67,0.00019871,2]
[359068601,1745692242512,-965.56,0.00019871,2]
[359068602,1745692242522,-600.25,0.00019871,2]
[359068603,1745692242532,-1108.91,0.00019871,2]
[359068604,1745692242542,-400.0,0.00019871,2]
[359068605,1745692242552,-611.6,0.00019871,2]
[359068607,1745692242561,-412.86,0.00019871,2]
[359068608,1745692242570,-427.88732377,0.00019871,2]
[359068609,1745692242580,-400.0,0.00019871,2]
[359068610,1745692242589,-523.93,0.00019871,2]
[359068611,1745692242599,-400.0,0.00019871,2]
[359068612,1745692242609,-657.72,0.00019871,2]
[359068613,1745692242618,-400.0,0.00019871,2]
[359068614,1745692242627,-400.0,0.00019871,2]
[359068615,1745692242636,-400.0,0.00019871,2]
[359068616,1745692242646,-806.82,0.00019871,2]
[359068617,1745692242655,-400.0,0.00019871,2]
[359068618,1745692242664,-400.0,0.00019871,2]
[359068619,1745692242673,-400.0,0.00019871,2]
[359068620,1745692242682,-169.18094099,0.00019871,2]
[359068622,1745692242692,-652.94,0.00019871,2]
[359068624,1745692242701,-400.0,0.00019871,2]
[359068626,1745692242710,-400.0,0.00019871,2]
[359068627,1745692242720,-299.75946424,0.00019871,2]
[359068628,1745692242730,-400.0,0.00019871,2]
[359068629,1745692242740,-420.52100749,0.00019871,2]
[359068630,1745692242749,-460.30127748,0.00019871,2]
[359068631,1745692242759,-400.0,0.00019871,2]
[359068632,1745692242769,-400.0,0.00019871,2]
[359068633,1745692242778,-400.0,0.00019871,2]
[359068634,1745692242787,-400.0,0.00019871,2]
[359068635,1745692242797,-400.0,0.00019871,2]
[359068636,1745692242806,-400.0,0.00019871,2]
[359068637,1745692242816,-400.0,0.00019871,2]
[359068638,1745692242826,-400.0,0.00019871,2]
[359068639,1745692242838,-400.0,0.00019871,2]
[359068640,1745692242848,-627.01,0.00019871,2]
[359068641,1745692242859,-400.0,0.00019871,2]
[359068642,1745692242869,-400.0,0.00019871,2]
[359068643,1745692242881,-599.35,0.00019871,2]
[359068644,1745692242892,-400.0,0.00019871,2]
[359068645,1745692242903,-400.0,0.00019871,2]
[359068646,1745692242913,-400.0,0.00019871,2]
[359068647,1745692242923,-400.0,0.00019871,2]
[359068648,1745692242933,-400.0,0.00019871,2]
[359068649,1745692242943,-400.0,0.00019871,2]
[359068650,1745692242954,-400.0,0.00019871,2]
[359068651,1745692242965,-567.07,0.00019871,2]
[359068652,1745692242977,-511.79,0.00019871,2]
[359068653,1745692242987,-400.0,0.00019871,2]
[359068654,1745692242999,-400.0,0.00019871,2]
[359068655,1745692243009,-400.0,0.00019871,2]
[359068656,1745692243019,-400.0,0.00019871,2]
[359068657,1745692243028,-400.0,0.00019871,2]
[359068658,1745692243038,-400.0,0.00019871,2]
[359068659,1745692243047,-400.0,0.00019871,2]
[359068660,1745692243056,-400.0,0.00019871,2]
[359068661,1745692243067,-490.2,0.00019871,2]
[359068662,1745692243076,-767.41,0.00019871,2]
[359068663,1745692243086,-400.0,0.00019871,2]
[359068665,1745692243095,-400.0,0.00019871,2]
[359068667,1745692243105,-400.0,0.00019871,2]
[359068669,1745692243114,-437.98246931,0.00019871,2]
[359068671,1745692243124,-980.72,0.00019871,2]
[359068673,1745692243133,-424.83,0.00019871,2]
[359068675,1745692243143,-443.62640003,0.00019871,2]
[359068676,1745692243152,-400.0,0.00019871,2]
[359068677,1745692243162,-400.0,0.00019871,2]
[359068678,1745692243171,-400.0,0.00019871,2]
[359068679,1745692243181,-400.0,0.00019871,2]
[359068680,1745692243191,-400.0,0.00019871,2]
[359068682,1745692243200,-400.0,0.00019871,2]
[359068684,1745692243209,-635.57,0.00019871,2]
[359068686,1745692243219,-200.0,0.00019871,2]
[359068688,1745692243228,-400.0,0.00019871,2]
[359068690,1745692243238,-524.04,0.00019871,2]
[359068692,1745692243248,-478.14,0.00019871,2]
[359068694,1745692243260,-400.0,0.00019871,2]
[359068697,1745692243271,-400.0,0.00019871,2]
[359068699,1745692243281,-400.0,0.00019871,2]
[359068702,1745692243290,-400.0,0.00019871,2]
[359068705,1745692243301,-400.0,0.00019871,2]
[359068707,1745692243312,-530.37,0.00019871,2]
[359068709,1745692243322,-150.0,0.00019871,2]
[359068710,1745692243332,-400.0,0.00019871,2]
[359068711,1745692243342,-150.0,0.00019871,2]
[359068712,1745692243352,-500.0,0.00019871,2]
[359068713,1745692243363,-400.0,0.00019871,2]
[359068714,1745692243373,-500.0,0.00019871,2]
[359068715,1745692243383,-150.0,0.00019871,2]
[359068716,1745692243393,-400.0,0.00019871,2]
[359068717,1745692243652,-150.0,0.00019871,2]
[359068718,1745692243662,-400.0,0.00019871,2]
[359068719,1745692243672,-500.0,0.00019871,2]
[359068720,1745692243681,-429.77,0.00019871,2]
[359068721,1745692243691,-277.0773,0.00019871,2]
[359068722,1745692243700,-400.0,0.00019871,2]
[359068723,1745692243710,-150.0,0.00019871,2]
[359068724,1745692243720,-400.0,0.00019871,2]
[359068725,1745692243730,-400.0,0.00019871,2]
[359068726,1745692243741,-400.0,0.00019871,2]
[359068727,1745692243751,-400.0,0.00019871,2]
[359068728,1745692243760,-400.0,0.00019871,2]
[359068729,1745692243770,-400.0,0.00019871,2]
[359068730,1745692243779,-400.0,0.00019871,2]
[359068731,1745692243789,-400.0,0.00019871,2]
[359068732,1745692243798,-400.0,0.00019871,2]
[359068733,1745692243807,-500.0,0.00019871,2]
[359068734,1745692243817,-791.79,0.00019871,2]
[359068735,1745692243826,-883.25,0.00019871,2]
[359068736,1745692243837,-500.0,0.00019871,2]
[359068737,1745692243847,-500.0,0.00019871,2]
[359068738,1745692243857,-500.0,0.00019871,2]
[359068739,1745692243867,-386.85366755,0.00019871,2]
[359068740,1745692243876,-150.0,0.00019871,2]
[359068741,1745692243886,-400.0,0.00019871,2]
[359068742,1745692243896,-500.0,0.00019871,2]
[359068743,1745692243906,-571.0,0.00019871,2]
[359068744,1745692243916,-153.419571,0.00019871,2]
[359068745,1745692243926,-500.0,0.00019871,2]
[359068746,1745692243936,-400.0,0.00019871,2]
[359068747,1745692243947,-400.0,0.00019871,2]
[359068748,1745692243957,-151.0,0.00019871,2]
[359068749,1745692243967,-400.0,0.00019871,2]
[359068750,1745692243976,-480.04,0.00019871,2]
[359068751,1745692243986,-400.0,0.00019871,2]
[359068752,1745692243995,-722.9,0.00019871,2]
[359068753,1745692244006,-4617.81,0.00019871,2]
[359068754,1745692244015,-435.81,0.00019871,2]
[359068755,1745692244024,-400.0,0.00019871,2]
[359068756,1745692244034,-676.89,0.00019871,2]
[359068757,1745692244046,-811.07,0.00019871,2]
[359068758,1745692244056,-400.0,0.00019871,2]
[359068759,1745692244067,-400.0,0.00019871,2]
[359068760,1745692244076,-651.17,0.00019871,2]
[359068761,1745692244086,-400.0,0.00019871,2]
[359068762,1745692244096,-673.32,0.00019871,2]
[359068763,1745692244106,-400.0,0.00019871,2]
[359068764,1745692244116,-858.79,0.00019871,2]
[359068765,1745692244125,-151.0,0.00019871,2]
[359068766,1745692244136,-512.87,0.00019871,2]
[359068767,1745692244146,-300.0,0.00019871,2]
[359068768,1745692244156,-417.9,0.00019871,2]
[359068769,1745692244166,-400.0,0.00019871,2]
[359068770,1745692244176,-400.0,0.00019871,2]
[359068771,1745692244186,-440.36,0.00019871,2]
[359068772,1745692244196,-300.0,0.00019871,2]
[359068773,1745692244206,-153.192787,0.00019871,2]
[359068774,1745692244216,-400.0,0.00019871,2]
[359068775,1745692244225,-400.0,0.00019871,2]
[359068776,1745692244235,-400.0,0.00019871,2]
[359068777,1745692244244,-162.973523,0.00019871,2]
[359068778,1745692244257,-735.59,0.00019871,2]
[359068779,1745692244268,-471.62130063,0.00019871,2]
[359068780,1745692244280,-400.0,0.00019871,2]
[359068781,1745692244292,-151.921909,0.00019871,2]
[359068782,1745692244302,-400.0,0.00019871,2]
[359068783,1745692244312,-400.0,0.00019871,2]
[359068784,1745692244322,-479.4188343,0.00019871,2]
[359068785,1745692244333,-1006.21,0.00019871,2]
[359068786,1745692244343,-300.0,0.00019871,2]
[359068787,1745692244353,-434.83,0.00019871,2]
[359068788,1745692244363,-400.0,0.00019871,2]
[359068789,1745692244373,-300.0,0.00019871,2]
[359068790,1745692244382,-591.24,0.00019871,2]
[359068791,1745692244392,-663.23,0.00019871,2]
[359068792,1745692244402,-300.0,0.00019871,2]
[359068793,1745692244412,-400.0,0.00019871,2]
[359068794,1745692244422,-754.15,0.00019871,2]
[359068795,1745692244431,-400.0,0.00019871,2]
[359068796,1745692244441,-618.3,0.00019871,2]
[359068797,1745692244450,-208.45221972,0.00019871,2]
[359068798,1745692244460,-400.0,0.00019871,2]
[359068799,1745692244471,-549.24,0.00019871,2]
[359068800,1745692244481,-487.64,0.00019871,2]
[359068801,1745692244491,-400.0,0.00019871,2]
[359068802,1745692244502,-463.95,0.00019871,2]
[359068803,1745692244513,-235.852517,0.00019871,2]
[359068804,1745692244523,-400.0,0.00019871,2]
[359068805,1745692244533,-492.27,0.00019871,2]
[359068806,1745692244543,-429.34,0.00019871,2]
[359068807,1745692244556,-825.87,0.00019871,2]
[359068808,1745692244566,-235.852517,0.00019871,2]
[359068809,1745692244576,-400.0,0.00019871,2]
[359068810,1745692244589,-400.0,0.00019871,2]
[359068811,1745692244600,-342.68865527,0.00019871,2]
[359068812,1745692244610,-400.0,0.00019871,2]
[359068813,1745692244620,-300.0,0.00019871,2]
[359068814,1745692244630,-664.74,0.00019871,2]
[359068815,1745692244640,-400.0,0.00019871,2]
[359068816,1745692244651,-156.311182,0.00019871,2]
[359068817,1745692244662,-400.0,0.00019871,2]
[359068818,1745692244673,-300.0,0.00019871,2]
[359068819,1745692244684,-400.0,0.00019871,2]
[359068820,1745692244694,-632.59,0.00019871,2]
[359068821,1745692244704,-400.0,0.00019871,2]
[359068822,1745692244715,-400.0,0.00019871,2]
[359068823,1745692244726,-400.0,0.00019871,2]
[359068824,1745692244736,-787.5,0.00019871,2]
[359068825,1745692244747,-400.0,0.00019871,2]
[359068826,1745692244760,-925.51,0.00019871,2]
[359068827,1745692244770,-544.21,0.00019871,2]
[359068828,1745692244779,-526.37,0.00019871,2]
[359068829,1745692244790,-400.0,0.00019871,2]
[359068830,1745692244801,-762.11,0.00019871,2]
[359068831,1745692244811,-151.0,0.00019871,2]
[359068832,1745692244820,-400.0,0.00019871,2]
[359068833,1745692244831,-400.0,0.00019871,2]
[359068834,1745692244843,-490.28,0.00019871,2]
[359068835,1745692244854,-300.0,0.00019871,2]
[359068836,1745692244864,-555.35,0.00019871,2]
[359068837,1745692244874,-400.0,0.00019871,2]
[359068838,1745692244884,-742.17,0.00019871,2]
[359068839,1745692244894,-300.0,0.00019871,2]
[359068840,1745692244905,-489.63,0.00019871,2]
[359068841,1745692244915,-400.0,0.00019871,2]
[359068842,1745692244926,-151.0,0.00019871,2]
[359068843,1745692244937,-606.93,0.00019871,2]
[359068844,1745692244948,-151.0,0.00019871,2]
[359068845,1745692244958,-782.57,0.00019871,2]
[359068846,1745692244968,-400.0,0.00019871,2]
[359068847,1745692244978,-300.0,0.00019871,2]
[359068848,1745692244990,-151.0,0.00019871,2]
[359068849,1745692244999,-1190.06,0.00019871,2]
[359068850,1745692245011,-400.0,0.00019871,2]
[359068851,1745692245021,-400.0,0.00019871,2]
[359068852,1745692245030,-518.62,0.00019871,2]
[359068853,1745692245041,-614.535293,0.00019871,2]
[359068854,1745692245051,-151.0,0.00019871,2]
[359068855,1745692245062,-609.06,0.00019871,2]
[359068856,1745692245072,-614.535293,0.00019871,2]
[359068857,1745692245083,-1760.91,0.00019871,2]
[359068858,1745692245092,-415.79,0.00019871,2]
[359068859,1745692245102,-400.0,0.00019871,2]
[359068860,1745692245112,-8167.8,0.00019871,2]
[359068861,1745692245122,-400.0,0.00019871,2]
[359068862,1745692245132,-400.0,0.00019871,2]
[359068863,1745692245142,-400.0,0.00019871,2]
[359068864,1745692245152,-400.0,0.00019871,2]
[359068865,1745692245162,-400.0,0.00019871,2]
[359068866,1745692245172,-424.43,0.00019871,2]
[359068867,1745692245182,-514.53,0.00019871,2]
[359068868,1745692245192,-400.0,0.00019871,2]
[359068869,1745692245202,-338.61098,0.00019871,2]
[359068870,1745692245213,-151.0,0.00019871,2]
[359068871,1745692245225,-151.0,0.00019871,2]
[359068872,1745692245235,-338.61098,0.00019871,2]
[359068873,1745692245248,-548.2135109,0.00019871,2]
[359068874,1745692245259,-521.96,0.00019871,2]
[359068875,1745692245269,-912.12,0.00019871,2]
[359068876,1745692245279,-151.0,0.00019871,2]
[359068877,1745692245290,-572.88,0.00019871,2]
[359068878,1745692245300,-400.0,0.00019871,2]
[359068879,1745692245310,-400.0,0.00019871,2]
[359068880,1745692245320,-677.32,0.00019871,2]
[359068881,1745692245331,-569.28,0.00019871,2]
[359068882,1745692245342,-400.0,0.00019871,2]
[359068883,1745692245352,-400.0,0.00019871,2]
[359068884,1745692245363,-400.0,0.00019871,2]
[359068885,1745692245373,-423.19,0.00019871,2]
[359068886,1745692245383,-400.0,0.00019871,2]
[359068887,1745692245393,-151.0,0.00019871,2]
[359068888,1745692245403,-400.0,0.00019871,2]
[359068889,1745692245412,-477.18,0.00019871,2]
[359068890,1745692245422,-400.0,0.00019871,2]
[359068891,1745692245432,-484.77,0.00019871,2]
[359068892,1745692245442,-213.105836,0.00019871,2]
[359068893,1745692245451,-764.63,0.00019871,2]
[359068894,1745692245461,-400.0,0.00019871,2]
[359068895,1745692245471,-400.0,0.00019871,2]
[359068896,1745692245482,-400.0,0.00019871,2]
[359068897,1745692245491,-400.0,0.00019872,2]
[359068898,1745692245502,-926.56,0.00019872,2]
[359068899,1745692245511,-478.51,0.00019872,2]
[359068900,1745692245522,-636.77,0.00019872,2]
[359068901,1745692245533,-400.0,0.00019872,2]
[359068902,1745692245543,-400.0,0.00019872,2]
[359068903,1745692245553,-432.1,0.00019872,2]
[359068904,1745692245563,-533.0538612,0.00019872,2]
[359068905,1745692245572,-400.0,0.00019872,2]
[359068906,1745692245583,-400.0,0.00019872,2]
[359068907,1745692245593,-1434.93,0.00019872,2]
[359068908,1745692245602,-400.0,0.00019872,2]
[359068909,1745692245612,-567.87,0.00019872,2]
[359068910,1745692245622,-323.72,0.00019872,2]
[359068911,1745692245632,-455.09,0.00019872,2]
[359068912,1745692245641,-519.59,0.00019872,2]
[359068913,1745692245651,-610.4,0.00019872,2]
[359068914,1745692245661,-680.35,0.00019872,2]
[359068915,1745692245670,-652.48,0.00019872,2]
[359068916,1745692245680,-635.34,0.00019872,2]
[359068917,1745692245690,-508.24,0.00019872,2]
[359068918,1745692245700,-725.03,0.00019872,2]
[359068919,1745692245710,-188.92,0.00019872,2]
[359068920,1745692245720,-486.4,0.00019872,2]
[359068921,1745692245730,-443.85,0.00019872,2]
[359068922,1745692245740,-400.0,0.00019872,2]
[359068923,1745692245750,-772.15,0.00019872,2]
[359068924,1745692245760,-400.0,0.00019872,2]
[359068925,1745692245770,-469.64,0.00019872,2]
[359068926,1745692245780,-400.02,0.00019872,2]
[359068927,1745692245789,-739.09,0.00019872,2]
[359068928,1745692245800,-207.24,0.00019872,2]
[359068929,1745692245810,-549.33,0.00019872,2]
[359068930,1745692245819,-1211.06,0.00019872,2]
[359068931,1745692245829,-1081.69,0.00019872,2]
[359068932,1745692245839,-400.0,0.00019872,2]
[359068933,1745692245849,-475.0,0.00019872,2]
[359068934,1745692245859,-600.61,0.00019872,2]
[359068935,1745692245869,-400.0,0.00019872,2]
[359068936,1745692245879,-400.0,0.00019872,2]
[359068937,1745692245889,-825.24,0.00019872,2]
[359068938,1745692245899,-400.0,0.00019872,2]
[359068939,1745692245909,-151.0,0.00019872,2]
[359068940,1745692245919,-400.0,0.00019872,2]
[359068941,1745692245928,-151.0,0.00019872,2]
[359068942,1745692245938,-400.0,0.00019872,2]
[359068943,1745692245949,-400.0,0.00019872,2]
[359068944,1745692245959,-931.82,0.00019872,2]
[359068945,1745692245968,-151.0,0.00019872,2]
[359068946,1745692245979,-400.0,0.00019872,2]
[359068947,1745692245990,-589.27,0.00019872,2]
[359068948,1745692245999,-400.0,0.00019872,2]
[359068949,1745692246011,-400.0,0.00019872,2]
[359068950,1745692246021,-955.94,0.00019872,2]
[359068951,1745692246034,-400.0,0.00019872,2]
[359068952,1745692246044,-712.27,0.00019872,2]
[359068953,1745692246054,-400.0,0.00019872,2]
[359068954,1745692246065,-400.0,0.00019872,2]
[359068955,1745692246074,-400.0,0.00019872,2]
[359068956,1745692246084,-151.0,0.00019872,2]
[359068957,1745692246095,-461.93,0.00019872,2]
[359068958,1745692246208,-151.0,0.00019872,2]
[359068959,1745692246218,-643.66,0.00019872,2]
[359068960,1745692246228,-400.0,0.00019872,2]
[359068961,1745692246237,-400.0,0.00019872,2]
[359068962,1745692246247,-400.0,0.00019872,2]
[359068963,1745692246258,-312.313674,0.00019872,2]
[359068964,1745692246269,-312.313674,0.00019872,2]
[359068966,1745692246278,-880.76,0.00019872,2]
[359068968,1745692246287,-478.76,0.00019872,2]
[359068969,1745692246299,-151.0,0.00019872,2]
[359068970,1745692246308,-55409.8860819,0.00019872,2]
[359068971,1745692246320,-400.0,0.00019872,2]
[359068972,1745692246331,-151.0,0.00019872,2]
[359068973,1745692246342,-400.0,0.00019872,2]
[359068974,1745692246351,-400.0,0.00019872,2]
[359068975,1745692246362,-559.74,0.00019872,2]
[359068976,1745692246372,-400.0,0.00019872,2]
[359068977,1745692246382,-400.0,0.00019872,2]
[359068979,1745692246394,-400.0,0.00019872,2]
[359068980,1745692246404,-679.8,0.00019872,2]
[359068981,1745692246415,-294.375668,0.00019872,2]
[359068982,1745692246425,-294.375668,0.00019872,2]
[359068983,1745692246435,-687.91,0.00019872,2]
[359068985,1745692246445,-133951.68,0.00019872,2]
[359068986,1745692246455,-400.0,0.00019872,2]
[359068987,1745692246465,-769.36,0.00019872,2]
[359068988,1745692246476,-158.839071,0.00019872,2]
[359068989,1745692246487,-400.0,0.00019872,2]
[359068990,1745692246498,-530.67,0.00019872,2]
[359068991,1745692246507,-551.52,0.00019872,2]
[359068992,1745692246518,-248.72,0.00019872,2]
[359068993,1745692246528,-490.84,0.00019872,2]
[359068994,1745692246539,-601.56,0.00019872,2]
[359068995,1745692246550,-589.042961,0.00019872,2]
[359068996,1745692246560,-151.0,0.00019872,2]
[359068997,1745692246570,-400.0,0.00019872,2]
[359068998,1745692246580,-400.0,0.00019872,2]
[359068999,1745692246592,-151.0,0.00019872,2]
[359069000,1745692246603,-738.86,0.00019872,2]
[359069001,1745692246612,-589.042961,0.00019872,2]
[359069002,1745692246622,-400.0,0.00019872,2]
[359069003,1745692246631,-151.0,0.00019872,2]
[359069004,1745692246640,-400.0,0.00019872,2]
[359069005,1745692246650,-169.789393,0.00019872,2]
[359069006,1745692246659,-400.0,0.00019872,2]
[359069007,1745692246668,-1143.17,0.00019872,2]
[359069008,1745692246678,-169.789393,0.00019872,2]
[359069009,1745692246687,-716.61,0.00019872,2]
[359069010,1745692246696,-678.48,0.00019872,2]
[359069011,1745692246706,-708.93,0.00019872,2]
[359069012,1745692246715,-1539.47,0.00019872,2]
[359069013,1745692246725,-15270.1835795,0.00019872,2]
[359069014,1745692246734,-471.93,0.00019872,2]
[359069015,1745692246744,-151.0,0.00019872,2]
[359069016,1745692246754,-400.0,0.00019872,2]
[359069017,1745692246763,-400.0,0.00019872,2]
[359069018,1745692246773,-1047.16,0.00019872,2]
[359069019,1745692246783,-1143.76,0.00019872,2]
[359069020,1745692246792,-1230.88,0.00019872,2]
[359069021,1745692246802,-540.19,0.00019872,2]
[359069022,1745692246812,-1183.49,0.00019872,2]
[359069023,1745692246822,-492.87790255,0.00019872,2]
[359069024,1745692246831,-826.45,0.00019872,2]
[359069025,1745692246842,-400.0,0.00019872,2]
[359069026,1745692246851,-433.89,0.00019872,2]
[359069027,1745692246860,-3341.84,0.00019872,2]
[359069028,1745692246870,-400.0,0.00019872,2]
[359069029,1745692246880,-235.852517,0.00019872,2]
[359069030,1745692246889,-235.852517,0.00019872,2]
[359069031,1745692246898,-400.0,0.00019872,2]
[359069032,1745692246907,-586.31,0.00019872,2]
[359069033,1745692246919,-591.6,0.00019872,2]
[359069034,1745692246929,-151.0,0.00019872,2]
[359069035,1745692246940,-1218.93,0.00019872,2]
[359069036,1745692246949,-1140.69,0.00019872,2]
[359069037,1745692246958,-151.0,0.00019872,2]
[359069038,1745692246967,-1008.89,0.00019872,2]
[359069039,1745692246976,-151.0,0.00019872,2]
[359069040,1745692246986,-427.06,0.00019872,2]
[359069041,1745692246995,-400.0,0.00019872,2]
[359069042,1745692247004,-151.0,0.00019872,2]
[359069043,1745692247015,-97093.11465212,0.00019872,2]
[359069044,1745692247636,-661.34,0.00019871,2]
[359069045,1745692247648,-44.38902975,0.00019871,2]
[359069046,1745692247703,-4157.96242299,0.00019843,2]
[359069047,1745692247714,-355.61097025,0.00019871,2]
[359069048,1745692247724,-400.0,0.00019871,2]
[359069049,1745692247736,-218.23757756,0.00019872,2]
[359069050,1745692247755,-632.58772212,0.00019872,2]
[359069051,1745692247769,-1659.72149004,0.00019872,2]
[359069052,1745692248915,-400.0,0.00019598,2]